{"text_format":"3","workbook":"xlsx","n_sheets":3,"sheets":["Sheet1","Sheet2","Sheet3"],"not_rendered":{"images":1,"macros":1,"defined_names":2},"read":"whole","date_system":"1900"}

{"sheet":"Sheet1","index":0,"n_rows":197,"n_cols":9,"rows_kept":197}
[]
[]
[]
[{"$nulls":5},{"$f":"TODAY()","v":"2021-07-14"}]
[{"$nulls":5},{"$f":"IF(J9<>\"\",J9,\"\")","v":""},null,null,{"$f":"COUNTIF($E$16:$E$250,\"<>\"&\"\")","v":0}]
[]
[]
[]
[null,null,"ATTACHMENT A - Account Addendum",{"$nulls":5},"Input Customer Name:"]
[]
[null,null,"Refer to the Electricity Sales Agreement or Enrollment Form for full Terms & Conditions"]
[]
[null,null,"Account Information",{"$nulls":5},"Steps"]
[{"$nulls":8},"1) Input Customer Name"]
[null,null,"#","Account Name","Account #","Utility",null,null,"2) Type in Customer Account Names, Numbers, and Utilities"]
[null,null,1,{"$nulls":5},"3) Click Save Addendum (saves document as PDF)"]
[null,null,{"$f":"C16+1","v":2}]
[null,null,{"$f":"C17+1","v":3}]
[null,null,{"$f":"C18+1","v":4}]
[null,null,5]
[null,null,6]
[null,null,7]
[null,null,8]
[null,null,9]
[null,null,10]
[null,null,11]
[null,null,12]
[null,null,13]
[null,null,14]
[null,null,15]
[null,null,16]
[null,null,17]
[null,null,18]
[null,null,19]
[null,null,20]
[null,null,21]
[null,null,22]
[null,null,23]
[null,null,24]
[null,null,25]
[null,null,26]
[null,null,27]
[null,null,28]
[null,null,29]
[null,null,30]
[null,null,31]
[null,null,32]
[null,null,33]
[null,null,34]
[null,null,35]
[null,null,36]
[null,null,37]
[null,null,38]
[null,null,39]
[null,null,40]
[null,null,41]
[null,null,42]
[null,null,43]
[null,null,44]
[null,null,45]
[null,null,46]
[null,null,47]
[null,null,48]
[null,null,49]
[null,null,50]
[null,null,51]
[null,null,52]
[null,null,53]
[null,null,54]
[null,null,55]
[null,null,56]
[null,null,57]
[null,null,58]
[null,null,59]
[null,null,60]
[null,null,61]
[null,null,62]
[null,null,63]
[null,null,64]
[null,null,65]
[null,null,66]
[null,null,67]
[null,null,{"$f":"C82+1","v":68}]
[null,null,69]
[null,null,70]
[null,null,71]
[null,null,72]
[null,null,73]
[null,null,74]
[null,null,75]
[null,null,76]
[null,null,77]
[null,null,78]
[null,null,79]
[null,null,80]
[null,null,81]
[null,null,82]
[null,null,83]
[null,null,84]
[null,null,85]
[null,null,86]
[null,null,87]
[null,null,88]
[null,null,89]
[null,null,90]
[null,null,91]
[null,null,92]
[null,null,93]
[null,null,94]
[null,null,95]
[null,null,96]
[null,null,97]
[null,null,98]
[null,null,99]
[null,null,100]
[null,null,101]
[null,null,102]
[null,null,103]
[null,null,104]
[null,null,105]
[null,null,106]
[null,null,107]
[null,null,108]
[null,null,109]
[null,null,110]
[null,null,111]
[null,null,112]
[null,null,113]
[null,null,114]
[null,null,115]
[null,null,116]
[null,null,117]
[null,null,118]
[null,null,119]
[null,null,120]
[null,null,121]
[null,null,122]
[null,null,123]
[null,null,124]
[null,null,125]
[null,null,126]
[null,null,127]
[null,null,128]
[null,null,129]
[null,null,130]
[null,null,131]
[null,null,{"$f":"C146+1","v":132}]
[null,null,133]
[null,null,134]
[null,null,135]
[null,null,136]
[null,null,137]
[null,null,138]
[null,null,139]
[null,null,140]
[null,null,141]
[null,null,142]
[null,null,143]
[null,null,144]
[null,null,145]
[null,null,146]
[null,null,147]
[null,null,148]
[null,null,149]
[null,null,150]
[null,null,151]
[null,null,152]
[null,null,153]
[null,null,154]
[null,null,155]
[null,null,156]
[null,null,157]
[null,null,158]
[null,null,159]
[null,null,160]
[null,null,161]
[null,null,162]
[null,null,163]
[null,null,164]
[null,null,165]
[null,null,166]
[null,null,167]
[null,null,168]
[null,null,169]
[null,null,170]
[null,null,171]
[null,null,172]
[null,null,173]
[null,null,174]
[null,null,175]
[null,null,176]
[null,null,177]
[null,null,178]
[null,null,179]
[null,null,180]
[null,null,181]
[null,null,182]

{"sheet":"Sheet2","index":1,"n_rows":0,"n_cols":0,"rows_kept":0}

{"sheet":"Sheet3","index":2,"n_rows":0,"n_cols":0,"rows_kept":0}